Cogmind - Beta 16 @@@ ROGUE MODE // 2025.11.09 @ 05:35:29 Player: Trione Result: Destroyed by Y-45 Defender with Heavy Assault Rifle Performance ------------- Evolutions (0) 0 Regions Visited (3) 600 Robots Destroyed (64) 320 Value Destroyed (1352) 1352 Prototype IDs (0) 0 Alien Tech Used (0) 0 Bonus (0) 0 TOTAL SCORE: 2272 Bonus ------- None Cogmind --------- Core Integrity 0/250 Matter 286/300 Energy 240/250 System Corruption 0% Temperature Cool (58) Movement Rolling (120) Ox2 Location -8/Recycling Parts ------- > --- POWER (1) -------- Ion Engine > --- PROPULSION (2) --- Wheel Compact Wheel > --- UTILITY (2) ------ High-capacity Storage Unit Seismic Detector > --- WEAPON (2) ------- Subdweller Laser Subdweller Machine Gun > --- INVENTORY (20) --- Light Treads Light Treads Spiked Treads Wheel Huge Storage Unit Medium Matter Pod (100) Medium Matter Pod (100) High-capacity Matter Pod (200) High-capacity Matter Pod (200) Scrap Shield Subdweller Laser Ion Cannon Subdweller Machine Gun Light Cannon Dirty Datajack (20) Multitool Hammer Scrap Shield Fragment (47) Scrap Shield Fragment (45) Peak State ------------ > --- POWER ------------ Ion Engine > --- PROPULSION ------- Subdweller Monowheel Subdweller Monowheel > --- UTILITY ---------- High-capacity Storage Unit Light Armor Plating > --- WEAPON ----------- Subdweller Laser Light Cannon > --- INVENTORY -------- Ion Engine Light Treads Light Treads Makeshift Leg Subdweller Monowheel Huge Storage Unit Medium Matter Pod Medium Matter Pod Medium Matter Pod Medium Matter Pod High-capacity Matter Pod High-capacity Matter Pod Seismic Detector Scrap Shield Subdweller Laser Subdweller Laser Light Cannon Dirty Datajack Hammer [Rating: 13] Favorites ----------- Power Ion Engine Engine Ion Engine Propulsion Compact Wheel Treads Light Treads Leg Aluminum Leg Wheel Compact Wheel Utility High-capacity Storage Unit Device Seismic Detector Storage High-capacity Storage Unit Processor Signal Interpreter Protection Light Armor Plating Weapon Light Cannon Energy Gun Subdweller Laser Energy Cannon Subdweller Beam Cannon Ballistic Gun Subdweller Machine Gun Ballistic Cannon Light Cannon Launcher Grenade Launcher Special Weapon Mining Laser Impact Weapon Hammer Build | -11 -10 -10 -8 ------- Run | Yrd Mat Sub Rec Slots Evolved . | . . . . Power . | . . . . Propulsion . | . . . . Utility . | . . . . Weapon . | . . . . Parts Attached 46 | 7 19 18 2 Power 2 | 1 . 1 . Engine 2 | 1 . 1 . Core . | . . . . Reactor . | . . . . Propulsion 18 | 2 8 8 . Treads 4 | . 4 . . Leg 1 | . 1 . . Wheel 13 | 2 3 8 . Hover . | . . . . Flight . | . . . . Utility 9 | 2 3 4 . Device 1 | 1 . . . Storage 4 | 1 3 . . Processor 2 | . . 2 . Hackware . | . . . . Protection 2 | . . 2 . Artifact . | . . . . Weapon 17 | 2 8 5 2 Energy Gun 5 | 2 . 2 1 Energy Cannon 2 | . . 2 . Ballistic Gun 3 | . 1 1 1 Ballistic Cannon 4 | . 4 . . Launcher 1 | . 1 . . Special Weapon 1 | . 1 . . Impact Weapon 1 | . 1 . . Slashing Weapon . | . . . . Piercing Weapon . | . . . . Special Melee Weapon . | . . . . Unidentified Prototypes . | . . . . Parts Lost 6 | . 2 4 . Power 1 | . . 1 . Propulsion 1 | . 1 . . Utility 1 | . . 1 . Weapon 3 | . 1 2 . Highest Loss Streak 3 | . 1 3 . To Critical Strikes . | . . . . Average Backups 14 | 5 14 14 17 Power . | . 1 . . Propulsion 3 | 3 3 2 4 Utility 6 | . 6 6 6 Weapon 3 | . 3 3 4 Tool/Special . | . . . . Unused Backups 23 | 1 5 5 12 Power 1 | 1 . . . Propulsion 7 | . 2 3 2 Utility 10 | . 2 2 6 Weapon 3 | . 1 . 2 Tool/Special 2 | . . . 2 Average Slot Usage (%) 97 | . 99 96 100 Engine 13 | . 14 13 14 Treads 5 | . 11 2 . Wheel 22 | . 16 25 28 Device 9 | . 14 5 14 Storage 12 | . 14 11 14 Protection 4 | . . 7 . Energy Gun 3 | . 2 3 11 Energy Cannon 1 | . . 2 . Ballistic Gun 3 | . 1 3 3 Ballistic Cannon 14 | . 14 16 1 Impact Weapon 5 | . 8 1 11 Peak Build Rating 13 | 8 8 13 12 Average Rating 9 | 5 7 10 11 On Entrance 6 | . 8 8 11 Avg Prop Armor Cover (%) 12 | . . 12 . Naked Turns . | . . . . Heaviest Build 59 | 14 52 59 54 Greatest Support 40 | 32 40 40 26 Greatest Overweight (x) 3 | . 1 3 2 Average Overweight (x) 1 | . . 1 1 Largest Inventory Capacity 20 | 8 20 20 20 Average Capacity 17 | 7 17 16 20 Most Carried 20 | 8 20 20 20 Average Carried 15 | 5 14 15 20 Final Capacity 20 | 8 20 20 20 Final Carried 20 | 8 18 20 20 Class Distribution -------------------- 96% | Mutant Dominant Class ---------------- Mutant | -10/Materials Mutant | -10/Subcaves Mutant | -8/Recycling Resources | -11 -10 -10 -8 ----------- Run | Yrd Mat Sub Rec Matter Collected 3233 | 270 1465 1340 158 Remotely . | . . . . Salvage Created 2266 | 83 1432 413 338 Parts 106 | 6 61 32 7 Haulers Intercepted 2 | . 2 . . Recyclers Shooed 5 | . 2 . 3 Parts Field Recycled . | . . . . Retrieved Matter . | . . . . Parts Self-Destructed 5 | . . 5 . Prevented . | . . . . Parts Restored . | . . . . Kills | -11 -10 -10 -8 ------- Run | Yrd Mat Sub Rec Combat Hostiles Destroyed 32 | . 18 13 1 Melee 1 | . 1 . . Guns 8 | . 5 2 1 Cannons 10 | . 3 7 . AOE 10 | . 6 4 . Classes Destroyed 15 | 2 8 4 1 Worker 4 | . 4 . . Builder 2 | . 2 . . Tunneler 2 | 1 1 . . Hauler 2 | . 2 . . Recycler 13 | 1 8 . 4 Mechanic 1 | . 1 . . Operator 3 | . 3 . . Turret 2 | . . 2 . Watcher 3 | . 3 . . Swarmer 7 | . 5 2 . Grunt 13 | . 13 . . Sentry 1 | . . . 1 Artisan 1 | . . 1 . Cobbler 1 | . . 1 . Subdweller 11 | . . 11 . Best Kill Streak 4 | 1 4 3 4 Combat Bots Only 3 | . 3 2 1 Max Kills in Single Turn 2 | 1 2 1 1 Gunslinging . | . . . . Exploded 2 | . 2 1 . Melee 1 | . 1 . . Uniques/NPCs Destroyed . | . . . . Combat | -11 -10 -10 -8 -------- Run | Yrd Mat Sub Rec Hostile Shots Fired 186 | . 76 106 4 Missed 69 | . 19 50 . Hits 117 | . 57 56 4 Projectile 117 | . 57 56 4 Critical Strikes 1 | . . 1 . Damage Taken 1407 | . 639 710 58 Core 252 | . 57 165 30 Absorbed by Shields . | . . . . Core Remaining (%) 100 | 100 . . . Volleys Fired 187 | 10 61 110 6 Largest 2 | 2 2 2 2 Hottest 110 | 80 100 110 90 Shots Fired 303 | 11 107 173 12 Gun 112 | 11 40 49 12 Cannon 168 | . 52 116 . Launcher 17 | . 9 8 . Special 6 | . 6 . . Kinetic 192 | . 69 117 6 Thermal 78 | 10 14 48 6 Explosive 17 | . 9 8 . Electromagnetic 16 | 1 15 . . Robot Hit Streak 16 | 2 6 16 12 Robot Miss Streak 2 | 2 2 2 1 Penetration Max . | . . . . Secondary Targets 1 | . 1 . . Max Gunslinging Chain 1 | . 1 . . Shots Hit Robots 210 | 7 95 98 10 Core Hits 83 | 3 40 37 3 Critical Kills 3 | . 3 . . Critical Parts Destroyed 6 | . 5 . 1 Critical Strikes 13 | . 8 4 1 Destroy 2 | . 1 1 . Blast 3 | . . 3 . Smash 8 | . 7 . 1 Melee Attacks 98 | . 56 29 13 Impact 98 | . 56 29 13 Slashing . | . . . . Piercing . | . . . . Sneak Attacks 21 | . 16 2 3 Combat Hostiles 1 | . 1 . . Follow-up Attacks . | . . . . Damage Inflicted 4942 | 77 2520 1976 369 Guns 749 | 77 280 271 121 Cannons 1744 | . 527 1217 . Explosions 758 | . 306 452 . Melee 1691 | . 1407 36 248 Ramming . | . . . . Kinetic 1997 | . 608 1287 102 Thermal 349 | 64 65 201 19 Explosive 758 | . 306 452 . Electromagnetic 147 | 13 134 . . Impact 1691 | . 1407 36 248 Slashing . | . . . . Piercing . | . . . . Highest Corruption . | . . . . Average Corruption . | . . . . Corruption Purged . | . . . . Corruption Blocked . | . . . . Overload Shots . | . . . . Overflow Damage 604 | . 486 . 118 Projectiles 13 | . 13 . . Explosions . | . . . . Melee 591 | . 473 . 118 Knockbacks 20 | . 13 6 1 Impact 9 | . 8 . 1 Kinetic 10 | . 5 5 . Secondary 1 | . . 1 . Self-Inflicted Damage . | . . . . Shots . | . . . . Rammed . | . . . . Targets Rammed . | . . . . Kicked . | . . . . Crushed . | . . . . Highest Temperature 122 | 18 122 12 120 Average Temperature 31 | 15 34 4 57 Received Heat Transfer 486 | . 297 171 18 Siege Activations . | . . . . Martial Activations . | . . . . Shielding Activations . | . . . . Robots Disrupted . | . . . . Combat Hostiles . | . . . . Robots Corrupted 13 | . 11 . 2 Combat Hostiles 3 | . 3 . . Parts Fried 19 | . 16 . 3 Impact Corruptions 27 | . 23 . 4 Robots Melted . | . . . . Combat Hostiles . | . . . . Parts Melted 1 | . 1 . . Heat Transferred 585 | 150 150 260 25 Parts Sabotaged . | . . . . Parts Stolen . | . . . . Parts Stripped . | . . . . Power Chain Reactions . | . . . . Alert | -11 -10 -10 -8 ------- Run | Yrd Mat Sub Rec Maximum Alert Level 1 | . 1 . . Low Security (%) 96 | 100 95 . 100 Level 1 3 | . 4 . . Level 2 . | . . . . Level 3 . | . . . . Level 4 . | . . . . Level 5 . | . . . . High Security . | . . . . Max Security . | . . . . Peak Influence 223 | 5 223 . 45 Initial . | . . . . Average 45 | 1 57 . 8 Influence Increases 1026 | 10 757 125 134 Destroy 0b10 Robot/C 460 | . 360 80 20 Destroy 0b10 Robot/NC 150 | 10 120 . 20 Destroy Leader 90 | . 90 . . Trap Triggered on 0b10 10 | . 10 . . Successful Hack 7 | . 7 . . Select Force Hacks 90 | . . . 90 Disable Machine 75 | . 75 . . Destroy Structure 39 | . 35 . 4 Lose Combat Pursuer 105 | . 60 45 . Influence Decreases 1026 | 10 542 340 134 Entered New Map 104 | . . 104 . Time Decay 897 | 10 517 236 134 Lost Part 20 | . 20 . . Purge Threat 5 | . 5 . . Squads Dispatched 5 | . 5 . . Investigation 2 | . 2 . . Extermination . | . . . . Reinforcement 3 | . 3 . . Assault . | . . . . Garrison . | . . . . Intercept . | . . . . Searches Triggered . | . . . . Construction Impeded . | . . . . Haulers Reinforced . | . . . . Active Scanning Responses . | . . . . Cargo Convoy Interrupts . | . . . . Stealth | -11 -10 -10 -8 --------- Run | Yrd Mat Sub Rec Distress Signals 2 | . 1 . 1 Communications Jammed . | . . . . Distress Signals . | . . . . Times Spotted 44 | . 27 15 2 Peak Tracking Total 4 | . 3 4 1 Tactical Retreats 3 | . 2 1 . Traps | -11 -10 -10 -8 ------- Run | Yrd Mat Sub Rec Traps Triggered 1 | . . 1 . Indirectly . | . . . . Trap Hack Attempts . | . . . . Triggered . | . . . . Disarmed . | . . . . Reprogrammed 3 | . 3 . . Reused 1 | . 1 . . Traps Extracted . | . . . . Installed . | . . . . Triggered 1 | . 1 . . Machines | -11 -10 -10 -8 ---------- Run | Yrd Mat Sub Rec Machines Disabled 7 | . 5 2 . Max in Single Turn 1 | . 1 1 . Machines Repaired . | . . . . Machines Dismantled . | . . . . Machines Sabotaged . | . . . . Overloaded Fab Kills . | . . . . Hacking | -11 -10 -10 -8 --------- Run | Yrd Mat Sub Rec Machines Accessed 13 | . 7 1 5 Terminals 7 | . 5 . 2 Fabricators . | . . . . Repair Stations . | . . . . Recycling Units 5 | . 2 . 3 Scanalyzers . | . . . . Garrison Access . | . . . . Total Hacks 30 | . 17 4 9 Successful 20 | . 11 4 5 Failed 10 | . 6 . 4 Catastrophic 1 | . 1 . . Database Lockouts . | . . . . Manual 20 | . 11 . 9 Terminals 19 | . 13 . 6 Fabricators . | . . . . Repair Stations . | . . . . Recycling Units 7 | . 4 . 3 Scanalyzers . | . . . . Garrison Access . | . . . . Terminal Hacks 8 | . 4 4 . Record 4 | . . 4 . Terminal Index 1 | . 1 . . Unreport Threat 1 | . 1 . . Locate Traps 1 | . 1 . . Reprogram Traps 1 | . 1 . . Fabricator Hacks . | . . . . Repair Station Hacks . | . . . . Recycling Unit Hacks 3 | . 3 . . Report Inventory 1 | . 1 . . Retrieve Matter 2 | . 2 . . Scanalyzer . | . . . . Garrison Access Hacks . | . . . . Unauthorized Hacks 9 | . 4 . 5 Terminals 6 | . 4 . 2 Botnet 6 | . 4 . 2 Fabricators . | . . . . Repair Stations . | . . . . Recycling Units 3 | . . . 3 Tunnel 3 | . . . 3 Scanalyzers . | . . . . Garrison Access . | . . . . Data Cores Recovered . | . . . . Used . | . . . . Hacking Detections 8 | . 6 . 2 Full Trace Events . | . . . . Feedback Events . | . . . . Feedback Blocked . | . . . . Robot Schematics Acquired . | . . . . Robots Built . | . . . . Authchips . | . . . . Time . | . . . . Total Robot Build Rating . | . . . . Part Schematics Acquired . | . . . . Parts Built . | . . . . Authchips . | . . . . Time . | . . . . Total Part Build Rating . | . . . . Part Studies Acquired . | . . . . Parts Repaired . | . . . . Time . | . . . . Parts Recycled . | . . . . Recycled Matter . | . . . . Retrieved Matter . | . . . . Retrieved Components . | . . . . Parts Scanalyzed . | . . . . Part Schematics Acquired . | . . . . Parts Damaged . | . . . . Bothacking | -11 -10 -10 -8 ------------ Run | Yrd Mat Sub Rec Used RIF Installer . | . . . . Robots Hacked . | . . . . Non-combat . | . . . . Combat . | . . . . Robot Hacks Applied . | . . . . Relay Couplers Released . | . . . . Fabnet Peak Effective % . | . . . . Robots Rewired . | . . . . Allies Hacked . | . . . . Hacks Repelled . | . . . . Allies | -11 -10 -10 -8 -------- Run | Yrd Mat Sub Rec Total Allies . | . . . . Largest Group . | . . . . Highest-Rated Group . | . . . . Highest-Rated Ally . | . . . . Total Orders . | . . . . Ally Attacks . | . . . . Total Damage . | . . . . Kills . | . . . . Allies Corrupted . | . . . . Allies Melted . | . . . . Intel | -11 -10 -10 -8 ------- Run | Yrd Mat Sub Rec Active Infowar (turns) 3849 | 25 2004 1291 529 Seismic 3849 | 25 2004 1291 529 Robot Analysis Total . | . . . . Derelict Logs Recovered 2 | . . 2 . Drone Launches . | . . . . Drone Recoveries . | . . . . Exploration | -11 -10 -10 -8 ------------- Run | Yrd Mat Sub Rec Turns Passed 5754 | 113 2004 3108 529 Spaces Moved 3581 | 71 1038 2048 424 Core 4 | 4 . . . Treads 214 | . 213 1 . Legs . | . . . . Wheels 3363 | 67 825 2047 424 Hover . | . . . . Flight . | . . . . Fastest Speed 50 | 50 90 105 105 Average Speed 119 | 97 130 117 106 Slowest Speed 320 | 100 240 320 120 Overloaded Moves . | . . . . Propulsion Burnouts . | . . . . Robots Hopped . | . . . . Potential Cave-ins . | . . . . Cave-ins Triggered . | . . . . Exploration Rate (%) 64 | 4 100 76 77 Regions Visited 3 Branch Regions 2 Pre-discovered Areas 4 | . . 1 3 Known Exits Taken 1 | . . 1 . Unknown Exits Taken 2 | 1 1 . . Scrap Searched 3 | . . 3 . Spaces Dug 26 | . 10 12 4 Terrain Destroyed 83 | . 33 46 4 Melee 16 | . 6 6 4 Projectile 8 | . 5 3 . AOE 59 | . 22 37 . Terrain Rammed . | . . . . Walls Destroyed . | . . . . Machines Disabled . | . . . . Actions | -11 -10 -10 -8 --------- Run | Yrd Mat Sub Rec Total 4558 | 101 1470 2522 465 Wait 477 | 4 239 218 16 Move 3578 | 70 1037 2047 424 Hop . | . . . . Pick Up 73 | 9 23 40 1 Fast Attach 13 | 7 2 4 . Attach 15 | . 3 12 . Detach 4 | . 1 3 . Swap 66 | . 31 31 4 Drop 46 | 1 17 27 1 Fire 187 | 10 61 110 6 Melee 98 | . 56 29 13 Ram . | . . . . Kick . | . . . . Crush . | . . . . Escape Stasis . | . . . . Rewire . | . . . . Trap . | . . . . Miscellaneous 1 | . . 1 . Route ------- -11/Scrapyard -10/Materials (discovered 5 exits: [*Mat x3] / [*Min] / *Sub) -10/Subcaves (discovered 4 exits: *Mat x2 / *Rec / [*Scr]) -8/Recycling History --------- Turn | Location | Event 27 | -11/Scrapyard | Discovered new exit (range 16) 114 | -11/Scrapyard | Entered Materials 383 | -10/Materials | Discovered new exit (range 13) 586 | -10/Materials | Discovered new exit (range 16) 622 | -10/Materials | Build established: Mutant 662 | -10/Materials | Discovered new exit (range 14) 913 | -10/Materials | Discovered new exit (range 15) 1703 | -10/Materials | Discovered new exit (range 9) 2118 | -10/Materials | Entered Subcaves 2119 | -10/Subcaves | Approached by a straggling Scientist 2192 | -10/Subcaves | Discovered new exit (range 10) 2219 | -10/Subcaves | Identified exit to Materials 2309 | -10/Subcaves | Shifting Twisted Machinery released Mak. Power Source 2339 | -10/Subcaves | Shifting Twisted Machinery released Mak. System Restoration Module 2355 | -10/Subcaves | Discovered new exit (range 15) 2421 | -10/Subcaves | Identified exit to Recycling 2470 | -10/Subcaves | Scientist uncovered a shortcut to Scraptown 2534 | -10/Subcaves | A swath of the cavern ceiling suddenly collapsed 2658 | -10/Subcaves | Discovered exit to Materials (range 12) 2881 | -10/Subcaves | Shifting Twisted Machinery released Scrap Shield 2926 | -10/Subcaves | Shifting Twisted Machinery released Multitool 3000 | -10/Subcaves | A swath of the cavern ceiling suddenly collapsed 3451 | -10/Subcaves | Disturbed a concealed Subdweller 3571 | -10/Subcaves | Learned location of Zion (-7) 4385 | -10/Subcaves | Ambushed by angry Subdweller bent on revenge 4387 | -10/Subcaves | Core integrity fell below 50% 4401 | -10/Subcaves | Core integrity fell below 20% 4440 | -10/Subcaves | Lost 3 parts (1p1u1w) 4498 | -10/Subcaves | Ambushed by angry Subdweller bent on revenge 4565 | -10/Subcaves | Learned Materials terminal intel 4616 | -10/Subcaves | Visited Clippyterm 4619 | -10/Subcaves | Learned Research security intel 5226 | -10/Subcaves | Entered Recycling 5407 | -8/Recycling | Scanned before Scraplab entrance 5755 | -8/Recycling | Destroyed by Y-45 Defender with Heavy Assault Rifle Last Messages --------------- my problem, and yours. 05503_ Connecting with Recycling Unit... >>Force(Tunnel) DISCOVERED[-3/Research] 05601_ Connecting with Recycling Unit... >>Force(Tunnel) DISCOVERED[-4/Archives] 05626_ Dropped Med. Matter Pod. 05626_ Acquired Ion Cannon. 05673_ U-05 Engineer builds a Wall. 05699_ Sneak attack on R-06 Scavenger. 05706_ Destroyed Tractor Beam. 05706_ R-06 Scavenger system corrupted by crushing effect. 05707_ R-06 Scavenger system terminally corrupted. 05707_ Com. Wheel fried. 05707_ Lgt. Ion Engine fried. 05730_ Com. Wheel tumbles out of recycling unit. 05734_ Tractor Beam tumbles out of recycling unit. 05739_ Y-45 Defender springs to life. [Achievement: Deductive Reasoning] Map ----- +----------------------------------------------------+ | ????????????????????????????????????? | | ????????????????????????????????????? | | ????????????????????????????????????? | | ????????????????????????????????????? | | ????????????????????????????????????? | | ????????????????????????????????????? | | ????????????????????????????????????? | | ????????????????????????????????????? | | ????????????????????????????????????? | | ????????????????????????????????????? | | ?????????????????????????????????#### | | ?????????#####????????##?????????# | | ????????? ????????############ | | ???????? ?????????# # | | ????????? ?????????# # | | ?????????" ?????????# # | | ????????" ?????????# + | | ???" ???"" ?????????# """ """ # | | ???# "" ?????????# """ """ # | | ???# """ ????????## """ """ # | | ???# """ ????????## # " | | ???# """r #????????############ " | | ???# " #???????????????????# " | | ???# #??????????????????## | | ???# #?????############### | | ??#T " @#?????# ] # | | ???# """ #?????#! ! =!]%+ | | ???# "" #?????#!! !% # | | ???# """ #?????# % ! # | | ???# "" Y############+######## | | ???# """ ;##= | | ???# """ # ! #####+##+## ######+# | | ???# """ #"Y ## # #= | | ????? " #"" ## # # | | ???? ### ## % # # % | | ???? r #?# ## = # # | | ???# ? # + # | | ???# ##?# ## %# # | | ???# ???# ## # # | | ???##### ???# + # #= | | ???????# ???# # % # # | | ???????# ???# ########## # | | ???????#####???# # ! | | ???????????????############### | | ??????????????????????????????####### | | ????????????????????????????????????? | | ????????????????????????????????????? | | ????????????????????????????????????? | | | | | +----------------------------------------------------+ Best States ------------- Heat Dissipation 25 Energy Generation 10 Energy Capacity 250 Matter Stores 300 Matter Capacity 300 Sight Range 16 Terrain Scan Density 10 Armor Coverage 800 Evasion (%) 42 Recoil Reduction 2 Item Schematics ----------------- None Robot Schematics ------------------ None Fabricated ------------ Nothing Repaired ---------- Nothing Studied --------- None Alien Tech Used ----------------- None Achievements -------------- Art Critic Bumper Bots DATA ERROR: Steam Global Achievement% Deductive Reasoning I Have A Map? Nice Directions, Buddy Organ Harvest Overwhelming Survival Of The Most Covered There's More Where That Came From You May Approach The Wall Challenges ------------ None Game ------ Seed MultinovaGlidesysDisplacer Manual? 0 Play Time 00:46:02 Cumulative 1370.9 hours Start 2025.11.09 @ 04:47:06 End 2025.11.09 @ 05:35:29 Sessions 1 Manual Loads 0 Difficulty Rogue Special Mode None Game No. 496 Rogue 496 Adventurer 0 Explorer 0 Win Type - Total 32 Types 16/2/8/0/0/0/6/0/0/0 Lore% 87 Gallery% 84 Achievement% 48 Wizard Run 0 Options --------- Layout 1 ASCII 0 Keyboard 0 Movement Vi Keybinds 0 Fullscreen 0 Font 14/CherryShadow Map View 64x42 Zoom Use 0% Tactical HUD 1 Map Filters NONE Filters NONE Steam 1 RUN: 3dc8860a-764c-4506-8de4-030634364b53